bitfinex-derivatives/quotes_SOLF0:USTF0_20250714
["timestamp","ask_amount","ask_price","bid_price","bid_amount"]
[1752502019523,187.75485979,168.3,168.21,6.59485979]
[1752502019919,6.59485979,168.28,168.17,6.59485979]
[1752502020619,6.59485979,168.28,168.11,16.745157]
[1752502020829,6.59485979,168.28,168.17,6.59485979]
[1752502021322,11.54410091,168.34,168.23,6.59485979]
[1752502021524,180.96,168.33,168.25,6.59485979]
[1752502021713,180.96,168.33,168.23,6.59485979]
[1752502021916,6.59485979,168.28,168.18,6.59485979]
[1752502022112,6.59485979,168.28,168.21,5.9435]
[1752502022326,6.59485979,168.26,168.16,6.59485979]
[1752502022521,6.59485979,168.26,168.21,5.9433]
[1752502022717,6.59485979,168.26,168.16,6.59485979]
[1752502023023,6.59485979,168.28,168.17,6.59485979]
[1752502023219,4.94924112,168.3,168.17,6.59485979]
[1752502023427,11.54410091,168.31,168.21,6.59485979]
[1752502023624,181.04,168.32,168.23,6.59485979]
[1752502023821,185.98924112,168.32,168.25,6.59485979]
[1752502024027,181.04,168.32,168.29,5.9405]
[1752502024224,181.04,168.32,168.29,6.59485979]
[1752502024424,4.94924112,168.36,168.29,6.59485979]
[1752502024624,4.94924112,168.37,168.3,5.9401]
[1752502024923,187.57485979,168.38,168.29,6.59485979]
[1752502025229,5.941,168.33,168.18,4.851357]
[1752502025417,6.59485979,168.34,168.24,6.59485979]
[1752502025929,6.59485979,168.34,168.26,5.9414]
[1752502026226,12.53585979,168.32,168.22,6.59485979]
[1752502026427,12.53585979,168.32,168.16,16.741457]
[1752502026630,12.53585979,168.32,168.22,6.59485979]
[1752502027625,6.59485979,168.32,168.22,6.59485979]
[1752502027827,17.87,168.37,168.24,6.59485979]
[1752502028033,6.59485979,168.36,168.26,6.59485979]
[1752502028523,6.59485979,168.36,168.29,5.9404]
[1752502028726,6.59485979,168.36,168.26,6.59485979]
[1752502029128,180.98,168.38,168.26,6.59485979]
[1752502029328,187.57485979,168.38,168.27,6.59485979]
[1752502029731,6.59485979,168.38,168.27,6.59485979]
[1752502029928,187.29485979,168.38,168.27,6.59485979]
[1752502030134,187.29485979,168.38,168.3,5.9402]
[1752502030433,187.29485979,168.38,168.29,6.59485979]
[1752502030836,187.29485979,168.38,168.3,5.94]
[1752502031036,187.29485979,168.38,168.29,6.59485979]
[1752502031932,187.29485979,168.38,168.3,5.9402]
[1752502032133,187.29485979,168.38,168.29,6.59485979]
[1752502032434,180.7,168.38,168.29,6.59485979]
[1752502033039,180.7,168.38,168.33,5.9392]
[1752502033626,180.7,168.38,168.31,6.59485979]
[1752502034335,180.7,168.38,168.29,6.59485979]
[1752502034546,180.7,168.38,168.32,5.9395]
[1752502034736,185.67691311,168.38,168.29,6.59485979]
[1752502035137,185.67691311,168.38,168.31,5.9397]
[1752502036037,180.7,168.38,168.32,5.9396]
[1752502036434,185.67691311,168.38,168.29,6.59485979]
[1752502036741,185.67691311,168.38,168.31,5.9398]
[1752502037447,185.67691311,168.38,168.32,5.9395]
[1752502037741,180.7,168.38,168.29,6.59485979]
[1752502037941,185.67691311,168.38,168.31,5.9397]
[1752502038244,185.67691311,168.38,168.32,5.85873148]
[1752502038434,185.67691311,168.38,168.33,5.85873148]
[1752502038633,180.7,168.38,168.34,5.85873148]
[1752502038838,180.7,168.38,168.31,6.59485979]
[1752502039040,180.7,168.38,168.33,3.95193953]
[1752502039241,180.7,168.38,168.34,5.85755826]
[1752502039539,180.7,168.38,168.37,5.9378]
[1752502039746,180.7,168.38,168.25,4.88043424]
[1752502040042,3.95193953,168.37,168.29,3.95193953]
[1752502040248,3.95193953,168.37,168.3,5.85510825]
[1752502040443,3.95193953,168.37,168.31,5.85510825]
[1752502040738,3.95193953,168.37,168.32,5.85510825]
[1752502041043,180.7,168.38,168.34,5.9387]
[1752502041247,180.7,168.38,168.35,5.85510825]
[1752502041440,180.7,168.38,168.36,5.85510825]
[1752502041746,180.7,168.38,168.33,6.5887421]
[1752502041943,180.7,168.38,168.34,5.85401161]
[1752502042143,180.7,168.38,168.37,5.9378]
[1752502042742,180.7,168.38,168.32,6.5887421]
[1752502042946,180.7,168.38,168.33,5.85312506]
[1752502043149,180.7,168.38,168.34,5.85312506]
[1752502043447,180.7,168.38,168.3,6.5887421]
[1752502043647,180.7,168.38,168.31,5.85464758]
[1752502043847,180.7,168.38,168.34,5.9387]
[1752502044351,180.7,168.38,168.3,6.5887421]
[1752502044352,180.7,168.38,168.35,11.79255361]
[1752502044642,180.7,168.38,168.3,6.5887421]
[1752502044852,180.7,168.38,168.34,5.9386]
[1752502045050,180.7,168.38,168.35,5.85418737]
[1752502045351,180.7,168.38,168.3,6.5887421]
[1752502045544,180.7,168.38,168.32,6.5887421]
[1752502045741,180.7,168.38,168.33,5.85386073]
[1752502045936,180.7,168.38,168.34,5.85386073]
[1752502046141,180.7,168.38,168.36,5.9379]
[1752502047041,180.7,168.38,168.37,5.9378]
[1752502047441,180.7,168.38,168.36,5.9381]
[1752502047947,180.7,168.38,168.35,5.9383]
[1752502048154,180.7,168.38,168.36,5.85404931]
[1752502048448,180.7,168.38,168.32,6.5887421]
[1752502048642,180.7,168.38,168.33,5.8527853]
[1752502048843,180.7,168.38,168.34,5.8527853]
[1752502049046,180.7,168.38,168.35,5.8527853]
[1752502049345,180.7,168.38,168.36,5.8527853]
[1752502049647,180.7,168.38,168.32,6.5887421]
[1752502049842,4.97691311,168.44,168.36,6.5887421]
[1752502050042,179.76,168.43,168.37,5.85160137]
[1752502050347,179.76,168.43,168.38,5.9374]
[1752502050644,179.76,168.43,168.28,11.8819]
[1752502050848,6.5887421,168.42,168.36,5.9381]
[1752502051042,6.5887421,168.4,168.28,11.8819]
[1752502051237,5.941,168.43,168.38,5.9372]
[1752502051445,180.1,168.42,168.34,6.5887421]
[1752502051648,180.1,168.42,168.35,5.84913187]
[1752502051843,180.1,168.42,168.36,5.84913187]
[1752502052042,180.1,168.42,168.37,5.84913187]
[1752502052243,180.1,168.42,168.34,6.5887421]
[1752502052442,180.1,168.42,168.38,5.9372]
[1752502052851,180.1,168.42,168.36,6.5887421]
[1752502053046,17.83,168.46,168.38,6.5887421]
[1752502053349,180.02,168.45,168.39,5.8481558]
[1752502053653,180.02,168.45,168.4,5.9365]
[1752502054752,6.5887421,168.47,168.4,5.9365]
[1752502054952,179.9,168.46,168.4,5.9365]
[1752502055647,543.54547061,168.48,168.41,5.9364]
[1752502055947,179.76,168.47,168.42,5.84118224]
[1752502056153,179.76,168.47,168.43,5.84118224]
[1752502056451,179.76,168.47,168.42,6.5887421]
[1752502056648,179.76,168.47,168.45,5.9348]
[1752502056845,83.2737125,168.52,168.42,6.5887421]
[1752502057050,179.74,168.51,168.46,6.5887421]
[1752502057248,179.74,168.51,168.44,6.5887421]
[1752502057439,179.74,168.51,168.45,5.8302393]
[1752502057641,179.74,168.51,168.46,5.9344]
[1752502058154,179.74,168.51,168.44,6.5887421]
[1752502058354,179.74,168.51,168.45,5.83007171]
[1752502058550,179.74,168.51,168.44,6.5887421]
[1752502058743,513.22,168.56,168.49,5.9335]
[1752502058947,179.72,168.55,168.48,6.5887421]
[1752502059648,179.72,168.55,168.48,12.5225421]
[1752502059850,179.72,168.55,168.45,6.5887421]
[1752502060147,179.72,168.55,168.48,5.9337]
[1752502060553,179.72,168.55,168.49,5.9334]
[1752502061050,179.72,168.55,168.48,5.9338]
[1752502062352,186.3087421,168.55,168.45,6.5887421]
[1752502062552,186.3087421,168.55,168.46,5.81562139]
[1752502062855,186.3087421,168.55,168.47,5.9343]
[1752502063054,179.72,168.55,168.47,3.94534163]
[1752502063442,179.72,168.55,168.49,3.94534163]
[1752502064651,179.72,168.55,168.51,5.9327]
[1752502065054,179.72,168.55,168.52,5.9323]
[1752502066256,179.72,168.55,168.51,3.94534163]
[1752502066456,4.0,168.61,168.53,3.94534163]
[1752502066649,179.62,168.6,168.53,3.94534163]
[1752502067151,4.0,168.61,168.55,3.94534163]
[1752502067448,4.0,168.61,168.53,3.94534163]
[1752502067449,179.62,168.6,168.53,3.94534163]
[1752502068048,179.62,168.6,168.53,9.87734163]
[1752502068453,179.62,168.6,168.54,5.9318]
[1752502068751,179.62,168.6,168.53,3.94534163]
[1752502069453,179.62,168.6,168.55,3.94534163]
[1752502069749,179.62,168.6,168.55,9.87654163]
[1752502070154,179.62,168.6,168.55,3.94534163]
[1752502070357,183.58,168.61,168.55,3.94534163]
[1752502071356,183.58,168.61,168.55,9.87654163]
[1752502071554,4.0,168.61,168.59,3.94534163]
[1752502071752,3.94534163,168.7,168.59,3.94534163]
[1752502071947,185.83177432,168.71,168.66,3.94534163]
[1752502072951,185.83177432,168.71,168.65,6.56062705]
[1752502073152,6.25177432,168.71,168.6,6.56062705]
[1752502073348,6.25177432,168.71,168.54,11.8636]
[1752502073553,6.25177432,168.71,168.62,6.56062705]
[1752502073760,6.56062705,168.7,168.5,519.36062705]
[1752502074052,6.56062705,168.68,168.58,6.56062705]
[1752502074257,179.56,168.67,168.59,5.84165746]
[1752502074453,179.56,168.67,168.58,6.56062705]
[1752502074454,179.56,168.67,168.6,5.84165746]
[1752502074654,179.56,168.67,168.58,6.56062705]
[1752502074848,179.56,168.67,168.59,5.83807382]
[1752502075052,179.56,168.67,168.6,5.83807382]
[1752502075252,179.56,168.67,168.58,6.56062705]
[1752502075455,179.56,168.67,168.59,5.83404474]
[1752502075652,186.12062705,168.67,168.57,6.56062705]
[1752502075956,186.12062705,168.67,168.58,5.83545647]
[1752502076158,186.12062705,168.67,168.59,5.83545647]
[1752502076351,6.56062705,168.65,168.6,5.83545647]
[1752502076551,6.56062705,168.65,168.56,12.49162705]
[1752502077261,6.56062705,168.65,168.56,6.56062705]
[1752502077760,186.06062705,168.65,168.56,6.56062705]
[1752502078153,186.06062705,168.65,168.5,512.8]
[1752502078355,186.06062705,168.65,168.56,6.56062705]
[1752502078855,186.06062705,168.65,168.57,5.9305]
[1752502079162,186.06062705,168.65,168.56,6.56062705]
[1752502079563,186.06062705,168.65,168.56,12.49152705]
[1752502080255,186.06062705,168.65,168.54,6.56062705]
[1752502080560,186.06062705,168.65,168.55,5.833407]
[1752502080853,6.56062705,168.64,168.54,6.56062705]
[1752502081058,6.56062705,168.64,168.5,512.8]
[1752502081260,6.56062705,168.62,168.51,5.83443408]
[1752502081450,6.56062705,168.62,168.52,12.39506113]
[1752502081655,6.56062705,168.64,168.54,6.56062705]
[1752502081962,6.56062705,168.64,168.5,512.8]
[1752502081963,179.5,168.65,168.56,12.49152705]
[1752502082660,179.5,168.65,168.5,519.36062705]
[1752502082661,179.5,168.65,168.53,6.56062705]
[1752502082858,6.56062705,168.63,168.53,6.56062705]
[1752502083060,6.56062705,168.63,168.54,5.8344796]
[1752502083258,6.56062705,168.63,168.55,5.8344796]
[1752502083466,186.06062705,168.65,168.55,6.56062705]
[1752502083662,186.06062705,168.65,168.56,5.931]
[1752502083858,186.06062705,168.65,168.55,6.56062705]
[1752502084160,192.00162705,168.65,168.55,6.56062705]
[1752502084462,192.00162705,168.65,168.55,12.49172705]
[1752502085056,192.00162705,168.65,168.55,6.56062705]
[1752502085363,6.56062705,168.67,168.57,6.56062705]
[1752502085563,179.46,168.66,168.59,6.56062705]
[1752502085755,179.46,168.66,168.61,6.56062705]
[1752502085955,518.85177432,168.71,168.63,6.56062705]
[1752502086355,518.85177432,168.71,168.65,6.56062705]
[1752502086562,518.85177432,168.71,168.65,12.48852705]
[1752502086762,518.85177432,168.71,168.6,6.56062705]
[1752502086960,518.85177432,168.71,168.62,6.56062705]
[1752502087466,525.41240137,168.71,168.61,6.56062705]
[1752502088162,6.56062705,168.67,168.57,6.56062705]
[1752502088464,6.56062705,168.69,168.59,6.56062705]
[1752502088660,6.56062705,168.69,168.58,5.83490855]
[1752502088661,179.42,168.68,168.61,6.56062705]
[1752502088965,5.0,168.65,168.61,6.56062705]
[1752502089167,5.0,168.65,168.59,6.56062705]
[1752502089670,5.0,168.65,168.61,6.56062705]
[1752502089961,5.0,168.65,168.63,5.9286]
[1752502090266,5.0,168.65,168.63,6.56062705]
[1752502090865,5.0,168.65,168.64,5.9283]
[1752502091567,5.0,168.65,168.63,12.48912705]
[1752502092570,5.0,168.65,168.64,5.9283]
[1752502093370,5.0,168.65,168.61,6.56062705]
[1752502093567,5.0,168.65,168.62,5.84435719]
[1752502093766,5.0,168.65,168.61,5.929]
[1752502093963,5.0,168.65,168.62,5.84435721]
[1752502094164,5.0,168.65,168.59,6.56062705]
[1752502094363,5.0,168.65,168.6,5.84358679]
[1752502094565,5.0,168.65,168.61,5.84358679]
[1752502094761,5.0,168.65,168.62,5.84358679]
[1752502095071,5.0,168.65,168.6,9.86902524]
[1752502095266,5.0,168.65,168.61,5.86025197]
[1752502095466,5.0,168.65,168.62,5.86025197]
[1752502095667,5.0,168.65,168.63,5.86025197]
[1752502095866,5.0,168.65,168.61,5.9291]
[1752502096071,5.0,168.65,168.62,5.86293151]
[1752502096267,5.0,168.65,168.63,5.86293151]
[1752502096464,5.0,168.65,168.61,5.9291]
[1752502096664,5.0,168.65,168.62,5.86716743]
[1752502096866,5.0,168.65,168.6,9.86902524]
[1752502097065,5.0,168.65,168.61,5.86852829]
[1752502097266,5.0,168.65,168.62,5.86852829]
[1752502097474,5.0,168.65,168.63,5.87323279]
[1752502097670,5.0,168.65,168.6,3.93942524]
[1752502097969,5.0,168.65,168.61,5.87282034]
[1752502098170,5.0,168.65,168.62,5.87282034]
[1752502098370,5.0,168.65,168.63,5.87282034]
[1752502098569,5.0,168.65,168.6,5.9297]
[1752502098774,5.0,168.65,168.61,5.7944276]
[1752502099070,5.0,168.65,168.62,5.7944276]
[1752502099279,5.0,168.65,168.59,3.93942524]
[1752502099575,5.0,168.65,168.61,5.9294]
[1752502099774,5.0,168.65,168.62,5.79862679]
[1752502099976,5.0,168.65,168.51,11.8656]
[1752502099977,5.0,168.65,168.61,3.93942524]
[1752502100173,5.0,168.65,168.62,5.79909142]
[1752502100368,5.0,168.65,168.63,5.8038278]
[1752502100571,5.0,168.65,168.64,5.80334639]
[1752502101277,5.0,168.65,168.62,5.9289]
[1752502101466,5.0,168.65,168.63,5.80335682]
[1752502101665,5.0,168.65,168.64,5.80626647]
[1752502103376,8.93942524,168.65,168.64,1.80626646]
[1752502103580,8.93942524,168.65,168.56,3.93942524]
[1752502103874,5.0,168.65,168.56,9.87042524]
[1752502104079,3.93942524,168.64,168.56,3.93942524]
[1752502104479,3.93942524,168.64,168.57,5.9306]
[1752502104880,3.93942524,168.64,168.56,9.87042524]
[1752502105181,3.93942524,168.64,168.56,3.93942524]
[1752502105575,3.93942524,168.64,168.57,5.9307]
[1752502105978,3.93942524,168.64,168.56,5.9309]
[1752502106179,3.93942524,168.62,168.55,3.93942524]
[1752502106382,3.93942524,168.62,168.53,3.93942524]
[1752502106581,3.93942524,168.62,168.55,5.9313]
[1752502106883,3.93942524,168.58,168.5,3.93942524]
[1752502107185,3.93942524,168.58,168.49,3.93942524]
[1752502107775,3.93942524,168.58,168.52,5.9325]
[1752502108281,3.93942524,168.58,168.49,3.93942524]
[1752502108485,3.93942524,168.58,168.44,16.75053424]
[1752502108687,3.93942524,168.58,168.49,3.93942524]
[1752502108986,3.93942524,168.58,168.52,5.9323]
[1752502109386,3.93942524,168.58,168.51,3.93942524]
[1752502109787,3.93942524,168.58,168.53,5.9319]
[1752502109983,197.23,168.62,168.53,3.93942524]
[1752502109984,188.31633835,168.62,168.53,3.93942524]
[1752502110290,3.93942524,168.62,168.56,5.9309]
[1752502110480,3.93942524,168.62,168.55,3.93942524]
[1752502110878,3.93942524,168.62,168.56,5.9311]
[1752502111081,190.96737468,168.63,168.56,5.9311]
[1752502111278,190.96737468,168.63,168.51,6.57046157]
[1752502111483,4.97691311,168.62,168.51,6.57046157]
[1752502111683,196.90237468,168.63,168.51,6.57046157]
[1752502111890,196.90237468,168.63,168.55,5.9313]
[1752502112087,196.90237468,168.63,168.51,6.57046157]
[1752502112288,196.90237468,168.63,168.51,5.9326]
[1752502112289,6.57046157,168.59,168.51,5.9326]
[1752502112587,22.80691311,168.62,168.51,6.57046157]
[1752502112788,4.97691311,168.63,168.53,6.57046157]
[1752502113382,4.97691311,168.63,168.56,5.9311]
[1752502113584,5.935,168.63,168.56,5.9311]
[1752502113785,10.91191311,168.63,168.53,6.57046157]
[1752502113987,11.54737468,168.62,168.53,6.57046157]
[1752502114181,11.54737468,168.62,168.53,5.932]
[1752502114581,6.57046157,168.6,168.53,5.932]
[1752502114784,6.57046157,168.6,168.52,5.9324]
[1752502115084,11.54737468,168.6,168.49,6.57046157]
[1752502115390,5.935,168.57,168.49,12.50386157]
[1752502115888,6.57046157,168.58,168.49,12.50386157]
[1752502116089,4.97691311,168.59,168.5,5.9332]
[1752502116090,11.54737468,168.59,168.5,5.9332]
[1752502117093,6.57046157,168.57,168.5,5.9332]
[1752502117385,4.97691311,168.59,168.47,6.57046157]
[1752502117590,11.54737468,168.59,168.47,6.57046157]
[1752502117791,11.54737468,168.59,168.5,5.933]
[1752502117989,11.54737468,168.59,168.47,6.57046157]
[1752502119291,6.57046157,168.57,168.47,6.57046157]
[1752502119490,12.50546157,168.57,168.47,6.57046157]
[1752502119787,6.57046157,168.57,168.47,6.57046157]
[1752502119993,24.40046157,168.57,168.47,6.57046157]
[1752502120183,5.935,168.56,168.47,6.57046157]
[1752502120792,5.935,168.56,168.48,5.9337]
[1752502120992,24.40046157,168.57,168.41,646.95102132]
[1752502121288,6.57046157,168.55,168.47,5.934]
[1752502121487,6.57046157,168.53,168.41,122.67872132]
[1752502121692,17.83,168.52,168.4,6.58098754]
[1752502121885,24.41098754,168.52,168.42,6.58098754]
[1752502122087,29.38790065,168.52,168.42,6.58098754]
[1752502122285,24.41098754,168.52,168.45,5.9349]
[1752502122893,24.40989564,168.52,168.41,6.57989564]
[1752502123092,29.38680875,168.52,168.41,6.57989564]
[1752502123295,24.40989564,168.52,168.41,6.57989564]
[1752502123483,24.40989564,168.52,168.46,5.9345]
[1752502123687,24.40989564,168.52,168.41,6.57989564]
[1752502123889,24.40989564,168.52,168.47,5.9342]
[1752502124583,24.40989564,168.52,168.46,5.9345]
[1752502124795,24.40989564,168.52,168.43,6.57989564]
[1752502124992,24.40989564,168.52,168.47,5.9341]
[1752502125489,4.97691311,168.55,168.45,6.57989564]
[1752502125687,202.28691311,168.56,168.47,6.57989564]
[1752502125993,197.31,168.56,168.47,6.57989564]
[1752502126192,4.97691311,168.57,168.51,6.57989564]
[1752502126594,4.97691311,168.59,168.51,6.57989564]
[1752502126791,4.97691311,168.59,168.53,5.932]
[1752502126991,4.97691311,168.59,168.51,6.57989564]
[1752502127187,4.97691311,168.59,168.53,6.57989564]
[1752502127393,197.31,168.6,168.53,12.51189564]
[1752502127794,203.245,168.6,168.51,12.51259564]
[1752502127997,6.57989564,168.59,168.49,6.57989564]
[1752502128595,6.57989564,168.59,168.51,5.9327]
[1752502129097,12.51489564,168.59,168.51,5.9327]
[1752502129299,6.57989564,168.57,168.47,6.57989564]
[1752502129593,24.40989564,168.57,168.47,6.57989564]
[1752502129900,6.57989564,168.55,168.48,5.9339]
[1752502130396,5.935,168.54,168.48,5.9339]
[1752502130993,5.935,168.54,168.47,5.9342]
[1752502131196,6.57989564,168.55,168.38,11.8744]
[1752502131197,186.03989564,168.53,168.43,6.57989564]
[1752502131401,6.57989564,168.51,168.41,6.57989564]
[1752502131995,6.57989564,168.51,168.4,6.57989564]
[1752502132201,6.57989564,168.49,168.4,6.57989564]
[1752502132595,5.935,168.46,168.36,6.57989564]
[1752502132797,6.57989564,168.47,168.36,6.57989564]
[1752502133198,6.57989564,168.47,168.39,5.9369]
[1752502133597,6.57989564,168.47,168.38,6.57989564]
[1752502134199,6.57989564,168.47,168.4,5.9365]
[1752502135300,186.03989564,168.47,168.4,5.9365]
[1752502135504,186.05989564,168.47,168.4,5.9365]
[1752502135701,5.935,168.5,168.4,6.57989564]
[1752502135903,179.48,168.5,168.44,6.57989564]
[1752502136804,179.48,168.5,168.45,5.9348]
[1752502137006,179.48,168.5,168.44,6.57989564]
[1752502137399,512.76,168.51,168.47,5.9343]
[1752502137996,512.76,168.51,168.46,6.57989564]
[1752502139206,512.76,168.51,168.47,5.9342]
[1752502139602,512.76,168.51,168.48,5.9338]
[1752502139803,179.48,168.53,168.48,6.57989564]
[1752502140305,179.48,168.53,168.46,6.57989564]
[1752502140902,179.48,168.53,168.4,6.57989564]
[1752502141108,24.40989564,168.52,168.42,6.57989564]
[1752502141308,6.57989564,168.48,168.38,6.57989564]
[1752502141507,6.57989564,168.46,168.36,6.57989564]
[1752502141810,6.57989564,168.46,168.38,5.9374]
[1752502142009,179.48,168.47,168.36,6.57989564]
[1752502142213,186.05989564,168.47,168.36,6.57989564]
[1752502142507,179.46,168.47,168.38,6.57989564]
[1752502143310,179.46,168.47,168.4,6.57989564]
[1752502143603,179.46,168.48,168.4,6.57989564]
[1752502143804,179.46,168.48,168.42,6.57989564]
[1752502144006,179.46,168.48,168.44,5.9351]
[1752502144410,179.46,168.48,168.4,6.57989564]
[1752502145005,179.46,168.48,168.43,5.9357]
[1752502145204,179.46,168.48,168.4,6.57989564]
[1752502146200,179.46,168.48,168.42,6.57989564]
[1752502146609,179.46,168.48,168.45,5.9348]
[1752502146806,179.46,168.48,168.42,6.57989564]
[1752502147013,179.46,168.48,168.44,6.57989564]
[1752502147215,179.46,168.52,168.46,5.9345]
[1752502148410,6.57989564,168.51,168.41,6.57989564]
[1752502148807,6.57989564,168.51,168.43,5.9356]
[1752502149112,6.57989564,168.51,168.41,6.57989564]
[1752502149314,6.57989564,168.51,168.43,5.9356]
[1752502149611,5.935,168.5,168.41,6.57989564]
[1752502150113,197.29,168.52,168.43,6.57989564]
[1752502150512,197.29,168.52,168.45,5.9348]
[1752502150708,197.29,168.52,168.43,6.57989564]
[1752502151209,179.46,168.52,168.43,6.57989564]
[1752502151808,179.46,168.52,168.47,6.57989564]
[1752502152009,179.46,168.52,168.49,5.9334]
[1752502152314,179.46,168.52,168.45,6.57989564]
[1752502153017,179.46,168.52,168.49,5.9336]
[1752502153216,179.46,168.52,168.45,6.57989564]
[1752502153905,179.46,168.52,168.49,5.9336]
[1752502154113,179.46,168.52,168.45,6.57989564]
[1752502154514,179.46,168.52,168.47,5.934]
[1752502154713,179.46,168.52,168.45,6.57989564]
[1752502154911,179.46,168.52,168.47,6.57989564]
[1752502155215,179.46,168.52,168.48,5.9337]
[1752502155814,179.46,168.52,168.38,4.87652933]
[1752502156013,179.46,168.52,168.44,6.57989564]
[1752502156411,179.46,168.52,168.47,5.934]
[1752502157011,186.03989564,168.52,168.37,4.87652933]
[1752502157215,186.03989564,168.52,168.42,6.57989564]
[1752502157408,179.46,168.52,168.42,6.57989564]
[1752502157611,179.46,168.52,168.46,5.9344]
[1752502158008,179.38,168.51,168.48,5.9339]
[1752502158415,179.38,168.51,168.46,6.57989564]
[1752502158619,179.38,168.51,168.48,5.9337]
[1752502160015,179.38,168.51,168.44,6.57989564]
[1752502160422,179.38,168.51,168.46,5.9345]
[1752502161112,4.96788496,168.53,168.46,6.57989564]
[1752502161321,179.36,168.53,168.46,6.57989564]
[1752502161514,179.36,168.53,168.39,16.75062933]
[1752502161817,6.58081625,168.48,168.37,6.58081625]
[1752502162015,179.36,168.47,168.37,6.58081625]
[1752502162215,6.58081625,168.46,168.37,6.58081625]
[1752502162716,11.55145667,168.46,168.36,6.58357171]
[1752502164015,11.55145667,168.46,168.39,5.9371]
[1752502164221,11.55145667,168.46,168.36,6.58357171]
[1752502165220,11.55145667,168.46,168.39,5.9368]
[1752502165417,11.55145667,168.46,168.36,6.58357171]
[1752502165614,11.55145667,168.46,168.39,5.9371]
[1752502165823,4.96788496,168.46,168.4,6.58357171]
[1752502166021,179.54,168.49,168.4,6.58357171]
[1752502167220,179.54,168.49,168.35,4.87652933]
[1752502167417,184.50788496,168.49,168.4,6.58357171]
[1752502167821,184.50788496,168.49,168.42,5.936]
[1752502168310,191.09145667,168.49,168.41,5.9363]
[1752502168715,6.58357171,168.47,168.38,6.58357171]
[1752502168915,6.58357171,168.47,168.34,121.66748681]
[1752502169116,6.58357171,168.42,168.32,6.58357171]
[1752502169321,185.98357171,168.42,168.34,5.9387]
[1752502169520,185.98357171,168.42,168.32,6.58357171]
[1752502169727,179.4,168.42,168.32,6.58357171]
[1752502169927,179.4,168.42,168.34,6.58357171]
[1752502170515,179.4,168.42,168.35,5.9385]
[1752502171525,179.4,168.42,168.34,6.58357171]
[1752502172129,179.4,168.42,168.38,5.9374]
[1752502172520,179.4,168.42,168.34,6.58357171]
[1752502172921,179.4,168.42,168.38,6.58357171]
[1752502173329,179.4,168.42,168.4,5.9368]
[1752502173724,512.94,168.47,168.4,6.58357171]
[1752502174022,512.94,168.47,168.31,16.75602933]
[1752502174023,693.0,168.47,168.41,6.58357171]
[1752502174419,693.0,168.47,168.41,12.51967171]
[1752502174729,693.0,168.47,168.41,6.58357171]
[1752502174925,693.0,168.47,168.42,5.9359]
[1752502175232,180.06,168.47,168.43,6.58357171]
[1752502175630,180.06,168.47,168.44,5.9351]
[1752502176528,4.96788496,168.51,168.45,5.935]
[1752502176721,179.94,168.51,168.45,5.935]
[1752502177425,179.94,168.51,168.36,4.87652933]
[1752502177627,518.00788496,168.55,168.47,6.58357171]
[1752502177830,697.88788496,168.55,168.47,6.58357171]
[1752502178544,697.88788496,168.55,168.49,5.9335]
[1752502179330,692.92,168.55,168.49,5.9335]
[1752502179538,697.88788496,168.55,168.49,5.9335]
[1752502179733,692.92,168.55,168.47,6.58357171]
[1752502180235,692.92,168.55,168.5,5.9329]
[1752502180531,692.92,168.55,168.47,6.58357171]
[1752502181036,692.92,168.55,168.49,5.9335]
[1752502181529,692.92,168.55,168.4,4.87652933]
[1752502181728,6.58357171,168.53,168.42,6.58357171]
[1752502181929,6.58357171,168.53,168.37,4.87652933]
[1752502181930,4.96788496,168.53,168.44,6.58357171]
[1752502182129,11.55145667,168.54,168.44,6.58357171]
[1752502182739,11.55145667,168.54,168.46,5.9345]
[1752502183541,4.96788496,168.53,168.45,5.9349]
[1752502183744,11.55145667,168.52,168.42,6.58357171]
[1752502184035,181.46,168.51,168.43,6.07571145]
[1752502184239,181.46,168.51,168.45,5.9349]
[1752502184440,181.46,168.51,168.46,6.07571145]
[1752502184643,6.58357171,168.5,168.47,6.07571145]
[1752502184833,6.58357171,168.5,168.48,6.07571145]